[Event "*** SCC Grand Prix: Titled Tuesday Blitz"]
[Site "Chess.com"]
[Date "2020.09.29"]
[Round "7"]
[White "tsvet2005"]
[Black "bazar-wokzal"]
[Result "0-1"]
[WhiteElo "2637"]
[BlackElo "2492"]
[TimeControl "180+1"]
[EndTime "11:16:04 PDT"]
[Termination "bazar-wokzal won by checkmate"]

1. d4 {[%clk 0:03:00.9]} 1... Nf6 {[%clk 0:02:59.5]} 2. c4 {[%clk 0:03:01.3]}
2... Nc6 {[%clk 0:02:59.2]} 3. Nc3 {[%clk 0:02:55.9]} 3... e5 {[%clk 0:02:59]}
4. d5 {[%clk 0:02:54.4]} 4... Ne7 {[%clk 0:02:58.9]} 5. f3 {[%clk 0:02:52.3]}
5... Ng6 {[%clk 0:02:58.3]} 6. g4 {[%clk 0:02:50.2]} 6... Bc5 {[%clk 0:02:54.7]}
7. h4 {[%clk 0:02:47.9]} 7... h6 {[%clk 0:02:46.4]} 8. h5 {[%clk 0:02:41.1]}
8... Ne7 {[%clk 0:02:44.2]} 9. g5 {[%clk 0:02:38.8]} 9... hxg5 {[%clk
0:02:43.9]} 10. Bxg5 {[%clk 0:02:39.7]} 10... Rxh5 {[%clk 0:02:38.3]} 11. Rxh5
{[%clk 0:02:23.4]} 11... Nxh5 {[%clk 0:02:38.3]} 12. Nh3 {[%clk 0:02:08.6]}
12... d6 {[%clk 0:02:37.1]} 13. a3 {[%clk 0:02:02.3]} 13... a5 {[%clk 0:02:35]}
14. e3 {[%clk 0:01:53.2]} 14... Ng3 {[%clk 0:02:15]} 15. Bg2 {[%clk 0:01:47.3]}
15... f6 {[%clk 0:02:13.5]} 16. Bh4 {[%clk 0:01:47.2]} 16... Ngf5 {[%clk
0:02:09.9]} 17. Bf2 {[%clk 0:01:47.4]} 17... Bxe3 {[%clk 0:02:07.8]} 18. Qd3
{[%clk 0:01:43.7]} 18... Bxf2+ {[%clk 0:02:03.8]} 19. Nxf2 {[%clk 0:01:44.6]}
19... Nh4 {[%clk 0:01:54]} 20. Bh3 {[%clk 0:01:40.5]} 20... Bxh3 {[%clk
0:01:53.2]} 21. Nxh3 {[%clk 0:01:41.4]} 21... Qd7 {[%clk 0:01:51.3]} 22. Nf2
{[%clk 0:01:38.7]} 22... Qf5 {[%clk 0:01:49.7]} 23. Qxf5 {[%clk 0:01:33.5]}
23... Nexf5 {[%clk 0:01:49.3]} 24. f4 {[%clk 0:01:33.7]} 24... exf4 {[%clk
0:01:46.3]} 25. Kd2 {[%clk 0:01:30.5]} 25... Kf7 {[%clk 0:01:45.5]} 26. Rh1
{[%clk 0:01:27.9]} 26... g5 {[%clk 0:01:44.3]} 27. Nce4 {[%clk 0:01:26.3]} 27...
Ng3 {[%clk 0:01:41.3]} 28. Rh3 {[%clk 0:01:20.4]} 28... Nxe4+ {[%clk 0:01:36.2]}
29. Nxe4 {[%clk 0:01:21.3]} 29... Re8 {[%clk 0:01:34.3]} 30. Kd3 {[%clk
0:01:13.2]} 30... b6 {[%clk 0:01:31.3]} 31. b4 {[%clk 0:01:12]} 31... axb4
{[%clk 0:01:31.1]} 32. axb4 {[%clk 0:01:12.9]} 32... Kg6 {[%clk 0:01:29.8]} 33.
c5 {[%clk 0:01:12.6]} 33... bxc5 {[%clk 0:01:29.8]} 34. bxc5 {[%clk 0:01:13.5]}
34... f5 {[%clk 0:01:27.1]} 35. Nxd6 {[%clk 0:01:03.3]} 35... cxd6 {[%clk
0:01:26.5]} 36. c6 {[%clk 0:01:04.2]} 36... Kf6 {[%clk 0:01:18.9]} 37. Rh1
{[%clk 0:01:04.1]} 37... Nf3 {[%clk 0:01:14.2]} 38. Rh7 {[%clk 0:01:02.3]} 38...
Ke5 {[%clk 0:01:09.8]} 39. Kc4 {[%clk 0:00:57.1]} 39... Nd2+ {[%clk 0:01:06.4]}
40. Kb5 {[%clk 0:00:57.1]} 40... Kxd5 {[%clk 0:01:03.9]} 41. c7 {[%clk
0:00:57.2]} 41... f3 {[%clk 0:01:01.2]} 42. Rh2 {[%clk 0:00:55.5]} 42... Ne4
{[%clk 0:00:58.5]} 43. Kb6 {[%clk 0:00:52.9]} 43... f2 {[%clk 0:00:57.3]} 44.
Rh1 {[%clk 0:00:53.4]} 44... g4 {[%clk 0:00:57]} 45. Rd1+ {[%clk 0:00:52.9]}
45... Ke5 {[%clk 0:00:56.8]} 46. Rc1 {[%clk 0:00:50.3]} 46... g3 {[%clk
0:00:56]} 47. Kc6 {[%clk 0:00:47.6]} 47... g2 {[%clk 0:00:54.4]} 48. Kd7 {[%clk
0:00:47.5]} 48... Nf6+ {[%clk 0:00:53.1]} 49. Kc6 {[%clk 0:00:47.4]} 49... f1=Q
{[%clk 0:00:51.5]} 50. Rc3 {[%clk 0:00:42.1]} 50... g1=Q {[%clk 0:00:47.4]} 51.
Kb7 {[%clk 0:00:38.9]} 51... Qfg2+ {[%clk 0:00:37]} 52. Rc6 {[%clk 0:00:36.9]}
52... Qb1+ {[%clk 0:00:33.5]} 53. Ka7 {[%clk 0:00:36.1]} 53... Qxc6 {[%clk
0:00:22.5]} 54. c8=Q {[%clk 0:00:36.4]} 54... Qcb6+ {[%clk 0:00:21.1]} 55. Ka8
{[%clk 0:00:35.7]} 55... Rxc8# {[%clk 0:00:20.5]} 0-1

[Event "*** SCC Grand Prix: Titled Tuesday Blitz"]
[Site "Chess.com"]
[Date "2020.09.29"]
[Round "7"]
[White "annacramling"]
[Black "profofchess"]
[Result "0-1"]
[WhiteElo "2044"]
[BlackElo "2368"]
[TimeControl "180+1"]
[EndTime "11:16:06 PDT"]
[Termination "profofchess won on time"]

1. d4 {[%clk 0:03:00.9]} 1... Nf6 {[%clk 0:02:56.2]} 2. c4 {[%clk 0:02:58.3]}
2... e6 {[%clk 0:02:55.8]} 3. Nc3 {[%clk 0:02:54.4]} 3... Bb4 {[%clk 0:02:55.6]}
4. Qc2 {[%clk 0:02:54.4]} 4... b6 {[%clk 0:02:52.2]} 5. e4 {[%clk 0:02:54.1]}
5... c5 {[%clk 0:02:50.1]} 6. e5 {[%clk 0:02:53.4]} 6... cxd4 {[%clk 0:02:32.1]}
7. a3 {[%clk 0:02:44.4]} 7... Bxc3+ {[%clk 0:02:30.7]} 8. bxc3 {[%clk 0:02:44]}
8... Ng8 {[%clk 0:02:30.8]} 9. cxd4 {[%clk 0:02:44.1]} 9... Bb7 {[%clk
0:02:27.5]} 10. Nf3 {[%clk 0:02:37.1]} 10... Bxf3 {[%clk 0:02:25.3]} 11. gxf3
{[%clk 0:02:36.5]} 11... Nc6 {[%clk 0:02:24.7]} 12. d5 {[%clk 0:02:27.8]} 12...
Nxe5 {[%clk 0:02:12.6]} 13. Qe4 {[%clk 0:02:11.5]} 13... Ng6 {[%clk 0:02:11]}
14. Bb2 {[%clk 0:02:00.5]} 14... Nf6 {[%clk 0:02:10.7]} 15. Qd4 {[%clk
0:01:44.5]} 15... e5 {[%clk 0:02:04]} 16. Qe3 {[%clk 0:01:42]} 16... O-O {[%clk
0:02:01.7]} 17. Bd3 {[%clk 0:01:37.3]} 17... d6 {[%clk 0:01:59]} 18. O-O {[%clk
0:01:10.6]} 18... Nh5 {[%clk 0:01:54.8]} 19. Kh1 {[%clk 0:00:52.7]} 19... Nhf4
{[%clk 0:01:52]} 20. Rg1 {[%clk 0:00:48.7]} 20... f5 {[%clk 0:01:37.6]} 21. Bc1
{[%clk 0:00:43]} 21... Rc8 {[%clk 0:01:28]} 22. Bd2 {[%clk 0:00:35.4]} 22... Qh4
{[%clk 0:01:13.7]} 23. Bf1 {[%clk 0:00:29.3]} 23... Nh3 {[%clk 0:01:03.6]} 24.
Bxh3 {[%clk 0:00:20.7]} 24... Qxh3 {[%clk 0:01:03.4]} 25. Rg3 {[%clk 0:00:21.1]}
25... Qh4 {[%clk 0:01:02.4]} 26. Qg5 {[%clk 0:00:19.3]} 26... Qxg5 {[%clk
0:00:58.2]} 27. Rxg5 {[%clk 0:00:19.1]} 27... Rxc4 {[%clk 0:00:57.7]} 28. Rag1
{[%clk 0:00:19.5]} 28... Rd4 {[%clk 0:00:42.7]} 29. Bc3 {[%clk 0:00:07.2]} 29...
Rxd5 {[%clk 0:00:42.6]} 30. f4 {[%clk 0:00:06.8]} 30... Rd3 {[%clk 0:00:38.9]}
31. Bb4 {[%clk 0:00:05.1]} 31... a5 {[%clk 0:00:33.6]} 32. Be1 {[%clk
0:00:04.6]} 32... e4 {[%clk 0:00:27]} 33. h4 {[%clk 0:00:04.6]} 33... Rh3+
{[%clk 0:00:26.5]} 34. Kg2 {[%clk 0:00:04.7]} 34... Rxh4 {[%clk 0:00:22.3]} 35.
f3 {[%clk 0:00:05.2]} 35... exf3+ {[%clk 0:00:20.6]} 36. Kxf3 {[%clk 0:00:05.4]}
36... Rxf4+ {[%clk 0:00:20.9]} 37. Ke3 {[%clk 0:00:05.2]} 37... Re4+ {[%clk
0:00:20.7]} 38. Kd3 {[%clk 0:00:05]} 38... Rfe8 {[%clk 0:00:20.1]} 39. Bc3
{[%clk 0:00:03.4]} 39... f4 {[%clk 0:00:17.5]} 40. Rf1 {[%clk 0:00:02.2]} 40...
Re3+ {[%clk 0:00:17.3]} 41. Kc4 {[%clk 0:00:02]} 41... f3 {[%clk 0:00:17.1]} 42.
Kb5 {[%clk 0:00:01.9]} 42... Rxc3 {[%clk 0:00:16.2]} 43. Kxb6 {[%clk 0:00:01.9]}
43... Rc5 {[%clk 0:00:15.8]} 0-1

[Event "*** SCC Grand Prix: Titled Tuesday Blitz"]
[Site "Chess.com"]
[Date "2020.09.29"]
[Round "7"]
[White "isainz"]
[Black "ZenBull"]
[Result "1-0"]
[WhiteElo "2031"]
[BlackElo "2155"]
[TimeControl "180+1"]
[EndTime "11:16:06 PDT"]
[Termination "isainz won by checkmate"]

1. e4 {[%clk 0:03:00.9]} 1... c5 {[%clk 0:02:59.5]} 2. Nf3 {[%clk 0:03:00.7]}
2... e6 {[%clk 0:02:59.6]} 3. d4 {[%clk 0:03:00.7]} 3... cxd4 {[%clk 0:02:59.8]}
4. Nxd4 {[%clk 0:03:01.3]} 4... Nc6 {[%clk 0:03:00.1]} 5. Nc3 {[%clk 0:02:56.9]}
5... Qc7 {[%clk 0:03:00.2]} 6. Qd3 {[%clk 0:02:46.5]} 6... a6 {[%clk 0:02:58.2]}
7. Nxc6 {[%clk 0:02:44.1]} 7... Qxc6 {[%clk 0:02:51]} 8. Qg3 {[%clk 0:02:40.9]}
8... Nf6 {[%clk 0:02:42.3]} 9. Bd3 {[%clk 0:02:37.6]} 9... d5 {[%clk 0:02:32.1]}
10. exd5 {[%clk 0:02:35.1]} 10... Nxd5 {[%clk 0:02:31.9]} 11. Nxd5 {[%clk
0:02:31.9]} 11... Qxd5 {[%clk 0:02:30.2]} 12. O-O {[%clk 0:02:29.6]} 12... g6
{[%clk 0:01:48.7]} 13. Bf4 {[%clk 0:02:19.5]} 13... Bg7 {[%clk 0:01:47.3]} 14.
Rfd1 {[%clk 0:02:16]} 14... Qc6 {[%clk 0:01:35.1]} 15. Bd6 {[%clk 0:02:11.2]}
15... f5 {[%clk 0:01:24.6]} 16. Qh4 {[%clk 0:01:46.6]} 16... Bf8 {[%clk
0:01:05.4]} 17. Bxf8 {[%clk 0:01:38.6]} 17... Rxf8 {[%clk 0:00:56.5]} 18. Qxh7
{[%clk 0:01:37.2]} 18... e5 {[%clk 0:00:53.2]} 19. Be2 {[%clk 0:01:22.2]} 19...
Bd7 {[%clk 0:00:49.4]} 20. Rxd7 {[%clk 0:01:04.2]} 20... Qxd7 {[%clk 0:00:45.8]}
21. Qxg6+ {[%clk 0:01:04.3]} 21... Qf7 {[%clk 0:00:43.3]} 22. Qd6 {[%clk
0:01:01.6]} 22... Qe7 {[%clk 0:00:41.2]} 23. Bh5+ {[%clk 0:00:59.5]} 23... Rf7
{[%clk 0:00:39.5]} 24. Qd5 {[%clk 0:00:45.6]} 24... Kf8 {[%clk 0:00:21.8]} 25.
Bxf7 {[%clk 0:00:37.5]} 25... Qxf7 {[%clk 0:00:22.7]} 26. Qxe5 {[%clk
0:00:31.3]} 26... Re8 {[%clk 0:00:18.4]} 27. Qc5+ {[%clk 0:00:31.1]} 27... Kg8
{[%clk 0:00:17.7]} 28. b3 {[%clk 0:00:22.6]} 28... Qe6 {[%clk 0:00:15.2]} 29.
Qc4 {[%clk 0:00:21.1]} 29... Qxc4 {[%clk 0:00:14.1]} 30. bxc4 {[%clk 0:00:21.2]}
30... Rc8 {[%clk 0:00:15]} 31. Rb1 {[%clk 0:00:20.5]} 31... Rxc4 {[%clk
0:00:13.3]} 32. Kf1 {[%clk 0:00:19]} 32... Rxc2 {[%clk 0:00:12.1]} 33. Rxb7
{[%clk 0:00:19.6]} 33... Rxa2 {[%clk 0:00:12.1]} 34. Ra7 {[%clk 0:00:19.6]}
34... a5 {[%clk 0:00:11.4]} 35. h3 {[%clk 0:00:18.4]} 35... a4 {[%clk
0:00:11.2]} 36. g4 {[%clk 0:00:18.7]} 36... fxg4 {[%clk 0:00:10.5]} 37. hxg4
{[%clk 0:00:18.9]} 37... a3 {[%clk 0:00:10.9]} 38. Kg2 {[%clk 0:00:18.9]} 38...
Ra1 {[%clk 0:00:09.6]} 39. Kh2 {[%clk 0:00:17.8]} 39... a2 {[%clk 0:00:09.7]}
40. Kg2 {[%clk 0:00:17.8]} 40... Kf8 {[%clk 0:00:09.8]} 41. f4 {[%clk 0:00:16]}
41... Kg8 {[%clk 0:00:09.4]} 42. g5 {[%clk 0:00:15.6]} 42... Kf8 {[%clk
0:00:08.6]} 43. f5 {[%clk 0:00:15.7]} 43... Kg8 {[%clk 0:00:05.4]} 44. f6 {[%clk
0:00:15.7]} 44... Kf8 {[%clk 0:00:05.4]} 45. g6 {[%clk 0:00:16.1]} 45... Kg8
{[%clk 0:00:03.8]} 46. Ra8# {[%clk 0:00:15.3]} 1-0

[Event "*** SCC Grand Prix: Titled Tuesday Blitz"]
[Site "Chess.com"]
[Date "2020.09.29"]
[Round "7"]
[White "AlexSuv"]
[Black "ARTHURMOTIVATOR"]
[Result "1/2-1/2"]
[WhiteElo "2504"]
[BlackElo "2370"]
[TimeControl "180+1"]
[EndTime "11:16:07 PDT"]
[Termination "Game drawn by repetition"]

1. d4 {[%clk 0:03:00.9]} 1... Nf6 {[%clk 0:02:57.9]} 2. c4 {[%clk 0:02:53.6]}
2... c5 {[%clk 0:02:58.1]} 3. d5 {[%clk 0:02:53.1]} 3... g6 {[%clk 0:02:58.4]}
4. Nc3 {[%clk 0:02:52.4]} 4... Bg7 {[%clk 0:02:58.7]} 5. e4 {[%clk 0:02:53]}
5... d6 {[%clk 0:02:58.2]} 6. Nf3 {[%clk 0:02:53.5]} 6... O-O {[%clk 0:02:58.4]}
7. h3 {[%clk 0:02:54.1]} 7... e6 {[%clk 0:02:58.6]} 8. Bd3 {[%clk 0:02:54.8]}
8... Na6 {[%clk 0:02:56.1]} 9. O-O {[%clk 0:02:54.2]} 9... e5 {[%clk 0:02:55.2]}
10. a3 {[%clk 0:02:51.3]} 10... h6 {[%clk 0:02:51.8]} 11. Rb1 {[%clk 0:02:49.2]}
11... Nh7 {[%clk 0:02:44.1]} 12. b4 {[%clk 0:02:39.5]} 12... f5 {[%clk
0:02:44.1]} 13. Bc2 {[%clk 0:02:21]} 13... f4 {[%clk 0:02:36.8]} 14. Na4 {[%clk
0:02:00.7]} 14... b6 {[%clk 0:02:25.6]} 15. bxc5 {[%clk 0:01:59.2]} 15... Nxc5
{[%clk 0:02:21.2]} 16. Nxc5 {[%clk 0:01:59.3]} 16... bxc5 {[%clk 0:02:21.7]} 17.
Ba4 {[%clk 0:01:59.9]} 17... g5 {[%clk 0:02:10]} 18. Bc6 {[%clk 0:01:57.1]}
18... g4 {[%clk 0:02:05.5]} 19. Bxa8 {[%clk 0:01:18.3]} 19... gxf3 {[%clk
0:02:04.2]} 20. Qxf3 {[%clk 0:01:18.9]} 20... Ng5 {[%clk 0:02:03.8]} 21. Qh5
{[%clk 0:01:19.5]} 21... Nxe4 {[%clk 0:01:45.2]} 22. Bc6 {[%clk 0:01:13.1]}
22... Bf5 {[%clk 0:01:37.9]} 23. Rb7 {[%clk 0:01:08.7]} 23... Qf6 {[%clk
0:01:36.1]} 24. Bd7 {[%clk 0:01:00.8]} 24... Bg6 {[%clk 0:01:27.7]} 25. Qg4
{[%clk 0:01:01]} 25... Kh8 {[%clk 0:01:16.9]} 26. Qe6 {[%clk 0:00:47.6]} 26...
Qg5 {[%clk 0:01:12.6]} 27. h4 {[%clk 0:00:47.2]} 27... Qh5 {[%clk 0:01:03.6]}
28. Qg4 {[%clk 0:00:47.7]} 28... f3 {[%clk 0:00:54.1]} 29. Qxh5 {[%clk
0:00:39.1]} 29... Bxh5 {[%clk 0:00:54.2]} 30. g3 {[%clk 0:00:39]} 30... Nc3
{[%clk 0:00:50.6]} 31. Be3 {[%clk 0:00:36.7]} 31... e4 {[%clk 0:00:47.1]} 32.
Be6 {[%clk 0:00:27.2]} 32... Ne2+ {[%clk 0:00:39.3]} 33. Kh2 {[%clk 0:00:27.1]}
33... a5 {[%clk 0:00:23.5]} 34. Rd7 {[%clk 0:00:25.1]} 34... Bd4 {[%clk
0:00:18.3]} 35. Bxh6 {[%clk 0:00:24.8]} 35... Rb8 {[%clk 0:00:18.3]} 36. Rxd6
{[%clk 0:00:20.3]} 36... Rb2 {[%clk 0:00:15.1]} 37. Bg5 {[%clk 0:00:20.5]} 37...
Be5 {[%clk 0:00:05.4]} 38. Rd8+ {[%clk 0:00:21.1]} 38... Kg7 {[%clk 0:00:04.6]}
39. Rd7+ {[%clk 0:00:19]} 39... Kh8 {[%clk 0:00:03.8]} 40. Rd8+ {[%clk
0:00:15.8]} 40... Kg7 {[%clk 0:00:03.2]} 41. Rd7+ {[%clk 0:00:12.4]} 41... Kh8
{[%clk 0:00:03.1]} 42. Rd8+ {[%clk 0:00:11.5]} 1/2-1/2

[Event "*** SCC Grand Prix: Titled Tuesday Blitz"]
[Site "Chess.com"]
[Date "2020.09.29"]
[Round "7"]
[White "Rital44"]
[Black "gumimis"]
[Result "0-1"]
[WhiteElo "2342"]
[BlackElo "2228"]
[TimeControl "180+1"]
[EndTime "11:16:08 PDT"]
[Termination "gumimis won on time"]

1. e4 {[%clk 0:03:00.9]} 1... c5 {[%clk 0:02:59.3]} 2. Nf3 {[%clk 0:02:55.5]}
2... d6 {[%clk 0:02:59.4]} 3. d4 {[%clk 0:02:48.3]} 3... cxd4 {[%clk 0:03:00.2]}
4. Nxd4 {[%clk 0:02:49.1]} 4... Nf6 {[%clk 0:03:00.8]} 5. Nc3 {[%clk 0:02:49.5]}
5... a6 {[%clk 0:03:01.2]} 6. Be3 {[%clk 0:02:47.5]} 6... e5 {[%clk 0:03:01.2]}
7. Nb3 {[%clk 0:02:47.3]} 7... Be6 {[%clk 0:03:01.5]} 8. h3 {[%clk 0:02:46.8]}
8... Nc6 {[%clk 0:02:56.3]} 9. g4 {[%clk 0:02:43.9]} 9... Rc8 {[%clk 0:02:53.1]}
10. g5 {[%clk 0:02:43.6]} 10... Nd7 {[%clk 0:02:49.1]} 11. Qf3 {[%clk
0:02:38.6]} 11... Be7 {[%clk 0:02:40.9]} 12. h4 {[%clk 0:02:38]} 12... Nb4
{[%clk 0:02:27.7]} 13. O-O-O {[%clk 0:02:30.5]} 13... Nxa2+ {[%clk 0:02:20.6]}
14. Nxa2 {[%clk 0:02:24.8]} 14... Bxb3 {[%clk 0:02:20.5]} 15. Nc3 {[%clk
0:02:19.5]} 15... Be6 {[%clk 0:02:19.2]} 16. Bh3 {[%clk 0:02:17.2]} 16... Qa5
{[%clk 0:02:03.1]} 17. h5 {[%clk 0:01:36.2]} 17... Qa1+ {[%clk 0:01:43.4]} 18.
Nb1 {[%clk 0:01:31.6]} 18... Ba2 {[%clk 0:01:33.6]} 19. Kd2 {[%clk 0:01:15]}
19... Qxb2 {[%clk 0:01:30.5]} 20. Rc1 {[%clk 0:01:15.3]} 20... Bxb1 {[%clk
0:01:27.5]} 21. g6 {[%clk 0:00:40.6]} 21... Rxc2+ {[%clk 0:01:16.7]} 22. Rxc2
{[%clk 0:00:36.7]} 22... Qxc2+ {[%clk 0:01:16.8]} 23. Ke1 {[%clk 0:00:36.5]}
23... Nf6 {[%clk 0:00:51.9]} 24. Bf5 {[%clk 0:00:16.3]} 24... hxg6 {[%clk
0:00:44.5]} 25. hxg6 {[%clk 0:00:07.5]} 25... Rxh1+ {[%clk 0:00:43.5]} 26. Qxh1
{[%clk 0:00:08.4]} 26... Qc3+ {[%clk 0:00:38.9]} 27. Ke2 {[%clk 0:00:08.3]}
27... Bd3+ {[%clk 0:00:36]} 28. Kf3 {[%clk 0:00:08.2]} 28... Qc2 {[%clk
0:00:21.6]} 29. Qh8+ {[%clk 0:00:06.2]} 29... Bf8 {[%clk 0:00:21.9]} 30. Qh4
{[%clk 0:00:02.3]} 30... d5 {[%clk 0:00:14.5]} 31. exd5 {[%clk 0:00:02]} 31...
Qe2+ {[%clk 0:00:13.6]} 32. Kg2 {[%clk 0:00:02.1]} 32... Bxf5 {[%clk 0:00:12.7]}
33. Qa4+ {[%clk 0:00:03]} 33... Qb5 {[%clk 0:00:11.6]} 34. gxf7+ {[%clk
0:00:01.1]} 34... Kxf7 {[%clk 0:00:11.3]} 35. Qa2 {[%clk 0:00:02]} 35... Qxd5+
{[%clk 0:00:10.9]} 36. Qxd5+ {[%clk 0:00:01.2]} 36... Nxd5 {[%clk 0:00:11.8]}
0-1

[Event "*** SCC Grand Prix: Titled Tuesday Blitz"]
[Site "Chess.com"]
[Date "2020.09.29"]
[Round "7"]
[White "Sacbutt"]
[Black "StockholmMissile"]
[Result "1/2-1/2"]
[WhiteElo "2281"]
[BlackElo "2387"]
[TimeControl "180+1"]
[EndTime "11:16:09 PDT"]
[Termination "Game drawn by repetition"]

1. d4 {[%clk 0:03:00.3]} 1... f5 {[%clk 0:02:55.3]} 2. g4 {[%clk 0:02:58.8]}
2... fxg4 {[%clk 0:02:54.7]} 3. h3 {[%clk 0:02:59.2]} 3... g3 {[%clk 0:02:55.1]}
4. fxg3 {[%clk 0:02:59.8]} 4... g6 {[%clk 0:02:55.5]} 5. Nf3 {[%clk 0:03:00.3]}
5... Bg7 {[%clk 0:02:55.9]} 6. Bg2 {[%clk 0:03:00.9]} 6... Nf6 {[%clk
0:02:56.2]} 7. Nc3 {[%clk 0:03:00.4]} 7... d5 {[%clk 0:02:54.7]} 8. Bg5 {[%clk
0:02:58.4]} 8... O-O {[%clk 0:02:54.4]} 9. O-O {[%clk 0:02:56.3]} 9... c6 {[%clk
0:02:54.5]} 10. Ne5 {[%clk 0:02:52.4]} 10... Nbd7 {[%clk 0:02:52.4]} 11. e4
{[%clk 0:02:49.9]} 11... dxe4 {[%clk 0:02:36.5]} 12. Nxd7 {[%clk 0:02:46.3]}
12... Bxd7 {[%clk 0:02:34.9]} 13. Bxf6 {[%clk 0:02:38.5]} 13... exf6 {[%clk
0:02:32.1]} 14. Nxe4 {[%clk 0:02:37.6]} 14... f5 {[%clk 0:02:26.7]} 15. Nc5
{[%clk 0:02:36.1]} 15... b6 {[%clk 0:02:13.4]} 16. Nxd7 {[%clk 0:02:30.8]} 16...
Qxd7 {[%clk 0:02:09.9]} 17. c3 {[%clk 0:02:31.7]} 17... Rae8 {[%clk 0:02:07.9]}
18. Qf3 {[%clk 0:02:27.9]} 18... Re4 {[%clk 0:02:03.7]} 19. Qf2 {[%clk 0:02:21]}
19... Re6 {[%clk 0:01:56.9]} 20. Rad1 {[%clk 0:02:15.2]} 20... Kh8 {[%clk
0:01:50]} 21. Rfe1 {[%clk 0:02:05.5]} 21... Rfe8 {[%clk 0:01:47.5]} 22. Rxe6
{[%clk 0:02:02.9]} 22... Rxe6 {[%clk 0:01:47.4]} 23. Re1 {[%clk 0:02:03]} 23...
h5 {[%clk 0:01:42]} 24. Re2 {[%clk 0:01:54.9]} 24... Qe7 {[%clk 0:01:28.5]} 25.
Bf3 {[%clk 0:01:50.2]} 25... Bh6 {[%clk 0:01:18.6]} 26. Rxe6 {[%clk 0:01:32.6]}
26... Qxe6 {[%clk 0:01:18.7]} 27. Qe2 {[%clk 0:01:33.2]} 27... Qd6 {[%clk
0:01:11.2]} 28. Qe5+ {[%clk 0:01:22.6]} 28... Qxe5 {[%clk 0:01:10.5]} 29. dxe5
{[%clk 0:01:23.5]} 29... c5 {[%clk 0:01:05.9]} 30. g4 {[%clk 0:01:18.5]} 30...
fxg4 {[%clk 0:01:03.8]} 31. hxg4 {[%clk 0:01:19.4]} 31... h4 {[%clk 0:01:04.4]}
32. Be4 {[%clk 0:01:16.4]} 32... Kg7 {[%clk 0:01:00.7]} 33. b3 {[%clk
0:01:09.7]} 33... b5 {[%clk 0:00:53.1]} 34. c4 {[%clk 0:01:06.1]} 34... b4
{[%clk 0:00:52.8]} 35. Kg2 {[%clk 0:00:58.1]} 35... Bf4 {[%clk 0:00:52]} 36. e6
{[%clk 0:00:54.6]} 36... Kf6 {[%clk 0:00:51.4]} 37. e7 {[%clk 0:00:52.6]} 37...
Kxe7 {[%clk 0:00:51.1]} 38. Bxg6 {[%clk 0:00:52.6]} 38... Kf6 {[%clk 0:00:19.2]}
39. Be8 {[%clk 0:00:49]} 39... Ke5 {[%clk 0:00:19.1]} 40. Kh3 {[%clk 0:00:47.7]}
40... Bg5 {[%clk 0:00:19]} 41. Kg2 {[%clk 0:00:43.9]} 41... Ke4 {[%clk
0:00:14.5]} 42. Kh3 {[%clk 0:00:42.9]} 42... Kd3 {[%clk 0:00:13.4]} 43. Kg2
{[%clk 0:00:42.2]} 43... Kc2 {[%clk 0:00:13.9]} 44. Kh3 {[%clk 0:00:41.8]} 44...
Kb2 {[%clk 0:00:14.4]} 45. Ba4 {[%clk 0:00:42.2]} 45... Kxa2 {[%clk 0:00:14.4]}
46. Kg2 {[%clk 0:00:42.8]} 46... Kb2 {[%clk 0:00:14.6]} 47. Kh3 {[%clk
0:00:43.3]} 47... Kc3 {[%clk 0:00:14.6]} 48. Kg2 {[%clk 0:00:43.9]} 48... Kd4
{[%clk 0:00:15.1]} 49. Kh3 {[%clk 0:00:42.7]} 49... Ke5 {[%clk 0:00:15.6]} 50.
Bc6 {[%clk 0:00:42.5]} 50... Kf4 {[%clk 0:00:15.9]} 51. Bb5 {[%clk 0:00:42.8]}
51... Bf6 {[%clk 0:00:16.1]} 52. Bc6 {[%clk 0:00:42.9]} 52... Kg5 {[%clk
0:00:16.3]} 53. Bb5 {[%clk 0:00:43.2]} 53... Be5 {[%clk 0:00:15.3]} 54. Bc6
{[%clk 0:00:43.3]} 54... a6 {[%clk 0:00:16.2]} 55. Bb7 {[%clk 0:00:42.9]} 55...
a5 {[%clk 0:00:16.3]} 56. Bc6 {[%clk 0:00:43.5]} 56... Bf6 {[%clk 0:00:14]} 57.
Bb5 {[%clk 0:00:43.5]} 57... Kf4 {[%clk 0:00:14.4]} 58. Bc6 {[%clk 0:00:43.9]}
58... Bg5 {[%clk 0:00:15.3]} 59. Bb5 {[%clk 0:00:44.3]} 59... Ke3 {[%clk
0:00:16.2]} 60. Bc6 {[%clk 0:00:44.8]} 60... Kd4 {[%clk 0:00:17.1]} 61. Bb5
{[%clk 0:00:45.1]} 61... Kc3 {[%clk 0:00:18]} 62. Ba4 {[%clk 0:00:45.6]} 62...
Kb2 {[%clk 0:00:18.9]} 63. Kg2 {[%clk 0:00:46]} 63... Kc3 {[%clk 0:00:19.8]} 64.
Kh3 {[%clk 0:00:46.6]} 64... Kb2 {[%clk 0:00:20.5]} 65. Kg2 {[%clk 0:00:47.1]}
65... Ka3 {[%clk 0:00:21.1]} 66. Kh3 {[%clk 0:00:47.6]} 66... Kb2 {[%clk
0:00:22]} 1/2-1/2